Cogmind - Beta 16 *** ADVENTURER MODE // 2025.11.22 @ 13:48:08 Player: BD Result: Destroyed by Y-45 Defender with Heavy Assault Rifle Performance ------------- Evolutions (2) 1000 Regions Visited (3) 600 Robots Destroyed (25) 125 Value Destroyed (816) 816 Prototype IDs (1) 20 Alien Tech Used (0) 0 Bonus (0) 0 TOTAL SCORE: 2561 Bonus ------- None Cogmind --------- Core Integrity 0/550 Matter 300/300 Energy 98/100 System Corruption 0% Temperature Cool (9) Movement Flying (200) Ox2 Location -8/Materials Parts ------- > --- POWER (1) -------- (None) > --- PROPULSION (3) --- Xenon Bombardment Thruster > --- UTILITY (5) ------ Medium Storage Unit Advanced Weight Redist. System Signal Interpreter > --- WEAPON (2) ------- Great Maul > --- INVENTORY (10) --- Improved VTOL Module Xenon Bombardment Thruster Xenon Bombardment Thruster High-capacity Battery (250) Advanced Weight Redist. System Advanced Weight Redist. System System Shield Heavy Particle Cannon Peak State ------------ > --- POWER ------------ Light Nuclear Core > --- PROPULSION ------- Cesium-ion Thruster Cesium-ion Thruster Xenon Bombardment Thruster > --- UTILITY ---------- Medium Storage Unit Advanced Weight Redist. System Improved Sensor Array Signal Interpreter System Shield > --- WEAPON ----------- Field Laser Great Maul > --- INVENTORY -------- Cesium-ion Thruster Improved VTOL Module Xenon Bombardment Thruster Xenon Bombardment Thruster Xenon Bombardment Thruster High-capacity Battery Advanced Weight Redist. System Advanced Weight Redist. System System Shield Heavy Particle Cannon [Rating: 33] Favorites ----------- Power Light Ion Engine Engine Light Ion Engine Power Core Light Nuclear Core Propulsion Aluminum Leg Leg Aluminum Leg Wheel Compact Wheel Flight Unit Cesium-ion Thruster Utility Signal Interpreter Device Sensor Array Storage Small Storage Unit Processor Signal Interpreter Hackware System Shield Protection Improved Light Armor Plating Weapon Hammer Energy Gun Small Laser Impact Weapon Hammer Build | -11 -10 -9 -8 ------- Run | Yrd Mat Mat Mat Slots Evolved 4 | . . 2 2 Power . | . . . . Propulsion 1 | . . 1 . Utility 3 | . . 1 2 Weapon . | . . . . Parts Attached 41 | 8 2 15 16 Power 5 | 1 . 2 2 Engine 3 | 1 . 1 1 Core 2 | . . 1 1 Reactor . | . . . . Propulsion 21 | 4 . 10 7 Treads . | . . . . Leg 6 | 2 . 4 . Wheel 2 | 2 . . . Hover . | . . . . Flight 13 | . . 6 7 Utility 9 | 1 1 2 5 Device 3 | . . 1 2 Storage 2 | 1 . . 1 Processor 2 | . 1 . 1 Hackware 1 | . . 1 . Protection 1 | . . . 1 Artifact . | . . . . Weapon 6 | 2 1 1 2 Energy Gun 3 | 2 . . 1 Energy Cannon . | . . . . Ballistic Gun . | . . . . Ballistic Cannon . | . . . . Launcher . | . . . . Special Weapon . | . . . . Impact Weapon 3 | . 1 1 1 Slashing Weapon . | . . . . Piercing Weapon . | . . . . Special Melee Weapon . | . . . . Unidentified Prototypes 1 | . . . 1 Parts Lost 22 | . . 7 15 Power 3 | . . 2 1 Propulsion 12 | . . 3 9 Utility 4 | . . 1 3 Weapon 3 | . . 1 2 Highest Loss Streak 8 | . . 6 8 To Critical Strikes . | . . . . Average Backups 6 | 1 5 7 8 Power . | . 1 1 . Propulsion 3 | 1 2 3 4 Utility 1 | . . 2 2 Weapon . | . . . . Tool/Special . | . . . . Unused Backups 13 | . 1 3 9 Power . | . . . . Propulsion 7 | . . 3 4 Utility 5 | . 1 . 4 Weapon 1 | . . . 1 Tool/Special . | . . . . Average Slot Usage (%) 84 | . 86 80 88 Engine 6 | . 14 2 4 Core 2 | . . 3 3 Leg 13 | . 28 16 . Flight 12 | . . 8 24 Device 3 | . . 4 3 Storage 11 | . 14 11 9 Processor 10 | . 1 11 15 Hackware 2 | . . . 8 Energy Gun 9 | . 15 9 3 Impact Weapon 12 | . 12 11 13 Peak Build Rating 33 | 6 7 18 33 Average Rating 13 | 4 6 9 24 On Entrance 7 | . 6 7 15 Avg Prop Armor Cover (%) 12 | . . 12 . Naked Turns . | . . . . Heaviest Build 23 | 11 12 15 23 Greatest Support 45 | 32 20 45 25 Greatest Overweight (x) 4 | . . 4 4 Average Overweight (x) . | . . . . Largest Inventory Capacity 10 | 8 8 8 10 Average Capacity 8 | 6 8 8 8 Most Carried 10 | 5 8 8 10 Average Carried 6 | 1 5 7 8 Final Capacity 10 | 8 8 8 10 Final Carried 8 | 3 7 8 8 Class Distribution -------------------- 67% | Mutant 21% | Hacker-Mutant 9% | Hacker-Sprinter Dominant Class ---------------- Mutant | -10/Materials Mutant | -9/Materials Hacker-Mutant | -8/Materials Resources | -11 -10 -9 -8 ----------- Run | Yrd Mat Mat Mat Matter Collected 590 | 271 19 110 190 Remotely . | . . . . Salvage Created 883 | . 199 178 506 Parts 31 | . 11 8 12 Haulers Intercepted 1 | . 1 . . Recyclers Shooed 1 | . . 1 . Parts Field Recycled . | . . . . Retrieved Matter . | . . . . Parts Self-Destructed . | . . . . Prevented . | . . . . Parts Restored . | . . . . Kills | -11 -10 -9 -8 ------- Run | Yrd Mat Mat Mat Combat Hostiles Destroyed 23 | . 5 4 14 Melee 16 | . 5 3 8 Classes Destroyed 7 | . 4 1 2 Hauler 1 | . 1 . . Watcher 1 | . 1 . . Swarmer 6 | . 3 . 3 Grunt 12 | . 2 3 7 Brawler 1 | . . . 1 Sentry 3 | . . 1 2 Hunter 1 | . . . 1 Best Kill Streak 6 | . 4 1 6 Combat Bots Only 6 | . 3 1 6 Max Kills in Single Turn 1 | . 1 1 1 Gunslinging . | . . . . Exploded . | . . . . Melee 1 | . 1 1 1 Uniques/NPCs Destroyed . | . . . . Combat | -11 -10 -9 -8 -------- Run | Yrd Mat Mat Mat Hostile Shots Fired 381 | . 22 104 255 Missed 124 | . 7 34 83 Hits 257 | . 15 70 172 Melee 1 | . . . 1 Projectile 256 | . 15 70 171 Critical Strikes 13 | . . . 13 Damage Taken 2563 | . 119 702 1742 Core 812 | . 13 242 557 Absorbed by Shields . | . . . . Ignored by Resistances 750 | . 37 209 504 Core Remaining (%) 77 | 100 94 39 . Volleys Fired . | . . . . Largest . | . . . . Hottest . | . . . . Shots Fired . | . . . . Gun . | . . . . Cannon . | . . . . Launcher . | . . . . Special . | . . . . Kinetic . | . . . . Thermal . | . . . . Explosive . | . . . . Electromagnetic . | . . . . Robot Hit Streak . | . . . . Robot Miss Streak . | . . . . Penetration Max . | . . . . Secondary Targets . | . . . . Shots Hit Robots 66 | . 11 21 34 Core Hits 12 | . 3 3 6 Critical Kills 3 | . 1 1 1 Critical Parts Destroyed 10 | . 2 2 6 Critical Strikes 14 | . 3 4 7 Smash 14 | . 3 4 7 Melee Attacks 72 | . 12 21 39 Impact 72 | . 12 21 39 Slashing . | . . . . Piercing . | . . . . Sneak Attacks 2 | . 1 1 . Combat Hostiles . | . . . . Follow-up Attacks 2 | . . . 2 Damage Inflicted 2346 | . 297 540 1509 Guns . | . . . . Cannons . | . . . . Explosions . | . . . . Melee 2346 | . 297 540 1509 Ramming . | . . . . Kinetic . | . . . . Thermal . | . . . . Explosive . | . . . . Electromagnetic . | . . . . Impact 2346 | . 297 540 1509 Slashing . | . . . . Piercing . | . . . . Highest Corruption . | . . . . Average Corruption . | . . . . Corruption Purged . | . . . . Corruption Blocked . | . . . . Overload Shots . | . . . . Overflow Damage 616 | . 80 75 461 Projectiles . | . . . . Explosions . | . . . . Melee 616 | . 80 75 461 Knockbacks 8 | . . 2 6 Impact 7 | . . 2 5 Kinetic . | . . . . Secondary 1 | . . . 1 Self-Inflicted Damage . | . . . . Shots . | . . . . Rammed . | . . . . Targets Rammed . | . . . . Kicked . | . . . . Crushed . | . . . . Highest Temperature 17 | . . . 17 Average Temperature 7 | . . . 7 Received Heat Transfer 1386 | . 54 396 936 Siege Activations . | . . . . Martial Activations . | . . . . Shielding Activations . | . . . . Robots Disrupted . | . . . . Combat Hostiles . | . . . . Robots Corrupted 8 | . 1 1 6 Combat Hostiles 7 | . . 1 6 Parts Fried 12 | . 3 5 4 Impact Corruptions 26 | . 5 4 17 Robots Melted . | . . . . Combat Hostiles . | . . . . Parts Melted . | . . . . Heat Transferred . | . . . . Parts Sabotaged . | . . . . Parts Stolen . | . . . . Parts Stripped . | . . . . Power Chain Reactions . | . . . . Alert | -11 -10 -9 -8 ------- Run | Yrd Mat Mat Mat Maximum Alert Level . | . . . . Low Security (%) 100 | 100 100 100 100 Level 1 . | . . . . Level 2 . | . . . . Level 3 . | . . . . Level 4 . | . . . . Level 5 . | . . . . High Security . | . . . . Max Security . | . . . . Peak Influence 115 | . 87 35 115 Initial 5 | . . . 5 Average 21 | . 27 7 38 Influence Increases 739 | . 148 176 415 Destroy 0b10 Robot/C 460 | . 100 80 280 Destroy 0b10 Robot/NC 10 | . 10 . . Destroy Leader 104 | . 24 20 60 Successful Hack 30 | . 14 16 . Partial Spotted 15 | . . . 15 Lose Combat Pursuer 120 | . . 60 60 Influence Decreases 719 | . 148 161 410 Entered New Map 10 | . . . 10 Time Decay 559 | . 148 141 270 Lost Part 150 | . . 20 130 Squads Dispatched 2 | . . 1 1 Investigation . | . . . . Extermination . | . . . . Reinforcement 2 | . . 1 1 Assault . | . . . . Garrison . | . . . . Intercept . | . . . . Searches Triggered . | . . . . Construction Impeded . | . . . . Haulers Reinforced . | . . . . Active Scanning Responses . | . . . . Cargo Convoy Interrupts . | . . . . Stealth | -11 -10 -9 -8 --------- Run | Yrd Mat Mat Mat Distress Signals 4 | . 1 2 1 Communications Jammed . | . . . . Distress Signals . | . . . . Times Spotted 45 | . 7 15 23 Peak Tracking Total 7 | . 4 4 7 Tactical Retreats 6 | . . 4 2 Traps | -11 -10 -9 -8 ------- Run | Yrd Mat Mat Mat Traps Triggered . | . . . . Indirectly . | . . . . Trap Hack Attempts . | . . . . Triggered . | . . . . Disarmed . | . . . . Reprogrammed . | . . . . Reused . | . . . . Traps Extracted . | . . . . Installed . | . . . . Triggered . | . . . . Machines | -11 -10 -9 -8 ---------- Run | Yrd Mat Mat Mat Machines Disabled . | . . . . Max in Single Turn . | . . . . Machines Repaired . | . . . . Machines Dismantled . | . . . . Machines Sabotaged . | . . . . Overloaded Fab Kills . | . . . . Hacking | -11 -10 -9 -8 --------- Run | Yrd Mat Mat Mat Machines Accessed 4 | . 2 2 . Terminals 4 | . 2 2 . Fabricators . | . . . . Repair Stations . | . . . . Recycling Units . | . . . . Scanalyzers . | . . . . Garrison Access . | . . . . Total Hacks 7 | . 4 3 . Successful 4 | . 2 2 . Failed 3 | . 2 1 . Catastrophic . | . . . . Database Lockouts . | . . . . Manual . | . . . . Terminals 7 | . 4 3 . Fabricators . | . . . . Repair Stations . | . . . . Recycling Units . | . . . . Scanalyzers . | . . . . Garrison Access . | . . . . Terminal Hacks 4 | . 2 2 . Branch Access Points 1 | . . 1 . Repair Station Index 1 | . . 1 . Scanalyzer Index 1 | . 1 . . Zone Layout 1 | . 1 . . Fabricator Hacks . | . . . . Repair Station Hacks . | . . . . Recycling Unit Hacks . | . . . . Scanalyzer . | . . . . Garrison Access Hacks . | . . . . Unauthorized Hacks . | . . . . Terminals . | . . . . Fabricators . | . . . . Repair Stations . | . . . . Recycling Units . | . . . . Scanalyzers . | . . . . Garrison Access . | . . . . Data Cores Recovered . | . . . . Used . | . . . . Hacking Detections 3 | . 1 2 . Full Trace Events 1 | . 1 . . Feedback Events . | . . . . Feedback Blocked . | . . . . Robot Schematics Acquired . | . . . . Robots Built . | . . . . Authchips . | . . . . Time . | . . . . Total Robot Build Rating . | . . . . Part Schematics Acquired . | . . . . Parts Built . | . . . . Authchips . | . . . . Time . | . . . . Total Part Build Rating . | . . . . Part Studies Acquired . | . . . . Parts Repaired . | . . . . Time . | . . . . Parts Recycled . | . . . . Recycled Matter . | . . . . Retrieved Matter . | . . . . Retrieved Components . | . . . . Parts Scanalyzed . | . . . . Part Schematics Acquired . | . . . . Parts Damaged . | . . . . Bothacking | -11 -10 -9 -8 ------------ Run | Yrd Mat Mat Mat Used RIF Installer . | . . . . Robots Hacked . | . . . . Non-combat . | . . . . Combat . | . . . . Robot Hacks Applied . | . . . . Relay Couplers Released . | . . . . Fabnet Peak Effective % . | . . . . Robots Rewired . | . . . . Allies Hacked . | . . . . Hacks Repelled . | . . . . Allies | -11 -10 -9 -8 -------- Run | Yrd Mat Mat Mat Total Allies . | . . . . Largest Group . | . . . . Highest-Rated Group . | . . . . Highest-Rated Ally . | . . . . Total Orders . | . . . . Ally Attacks . | . . . . Total Damage . | . . . . Kills . | . . . . Allies Corrupted . | . . . . Allies Melted . | . . . . Intel | -11 -10 -9 -8 ------- Run | Yrd Mat Mat Mat Active Infowar (turns) 354 | . . 289 65 Sensors 354 | . . 289 65 Robot Analysis Total . | . . . . Derelict Logs Recovered . | . . . . Drone Launches . | . . . . Drone Recoveries . | . . . . Exploration | -11 -10 -9 -8 ------------- Run | Yrd Mat Mat Mat Turns Passed 1824 | 152 421 659 592 Spaces Moved 1610 | 133 306 481 690 Core 21 | 8 . 9 4 Treads . | . . . . Legs 642 | 46 306 290 . Wheels 79 | 79 . . . Hover . | . . . . Flight 868 | . . 182 686 Fastest Speed 29 | 50 120 30 29 Average Speed 90 | 103 120 108 62 Slowest Speed 295 | 120 120 295 280 Overloaded Moves . | . . . . Propulsion Burnouts . | . . . . Robots Hopped . | . . . . Potential Cave-ins . | . . . . Cave-ins Triggered . | . . . . Exploration Rate (%) 28 | 5 41 31 35 Regions Visited 3 Branch Regions . Pre-discovered Areas . | . . . . Known Exits Taken 2 | . 1 1 . Unknown Exits Taken 1 | 1 . . . Scrap Searched . | . . . . Spaces Dug . | . . . . Terrain Destroyed . | . . . . Melee . | . . . . Projectile . | . . . . AOE . | . . . . Terrain Rammed . | . . . . Walls Destroyed . | . . . . Machines Disabled . | . . . . Actions | -11 -10 -9 -8 --------- Run | Yrd Mat Mat Mat Total 1851 | 145 341 583 782 Wait 65 | . 10 38 17 Move 1607 | 132 305 480 690 Hop . | . . . . Pick Up 35 | 3 7 12 13 Fast Attach 20 | 6 . 9 5 Attach 21 | 2 3 6 10 Detach 14 | 2 2 6 4 Swap 1 | . . . 1 Drop 19 | . 2 11 6 Fire . | . . . . Melee 69 | . 12 21 36 Ram . | . . . . Kick . | . . . . Crush . | . . . . Escape Stasis . | . . . . Rewire . | . . . . Trap . | . . . . Miscellaneous . | . . . . Route ------- -11/Scrapyard -10/Materials -9/Materials (discovered 3 exits: *Mat / Min x2) -8/Materials (discovered 1 exit: [*Fac]) History --------- Turn | Location | Event 19 | -11/Scrapyard | Discovered new exit (range 16) 153 | -11/Scrapyard | Entered Materials 307 | -10/Materials | Build established: Mutant 489 | -10/Materials | Discovered new exit (range 11) 571 | -10/Materials | Identified exit to Materials 574 | -10/Materials | Entered another Materials area 574 | -9/Materials | Evolved 2 slots: Propulsion x1, Utility x1 653 | -9/Materials | Identified exit to Mines 1171 | -9/Materials | Core integrity fell below 50% 1209 | -9/Materials | Discovered new exit (range 15) 1232 | -9/Materials | Identified exit to Materials 1233 | -9/Materials | Entered another Materials area 1233 | -8/Materials | Evolved 2 slots: Utility x2 1236 | -8/Materials | Lost 6 parts (1p3n1u1w) 1348 | -8/Materials | Lost 3 parts (3n) 1463 | -8/Materials | Core integrity fell below 50% 1558 | -8/Materials | Lost 3 parts (2n1u) 1785 | -8/Materials | Core integrity fell below 20% 1807 | -8/Materials | Discovered new exit (range 16) 1825 | -8/Materials | Destroyed by Y-45 Defender with Heavy Assault Rifle Last Messages --------------- 01787_ Critical hit (Burn: +37). 01793_ Destroyed Aluminum Leg. 01793_ G-47 Trooper system corrupted by crushing effect. 01795_ Critical hit (Burn: +37). 01795_ G-47 Trooper misfires. 01796_ Destroyed Imp. Heat Sink. 01796_ Destroyed Aluminum Leg. 01796_ G-47 Trooper system corrupted by crushing effect. 01797_ G-47 Trooper system terminally corrupted. 01799_ G-47 Trooper suffers critical hit (Smash). 01799_ Destroyed Imp. Heat Sink. 01799_ G-47 Trooper system corrupted by crushing effect. 01799_ G-47 Trooper destroyed. 01804_ Cesium-ion Thruster destroyed. 01807_ EXIT=FOUND 01811_ Cesium-ion Thruster destroyed. Map ----- +----------------------------------------------------+ | ??????????????????????????# #???????????????#????? | | ??????????????????????????# #?????????????? #????? | | ??????????????????????????# #?????????????? #????? | | ??????????????##########??# #?????????????? #????? | | ??????????????# #??# #?????????????? ????? | | ??????????????# """ #### ##????????????? #????? | | ??????????????# """ # #????????????? #????? | | ??????????????# """ =#% ! #????????????# #????? | | ??????????????# ]%+= =%############## #####+ | | ??????????????# """ #% %= | | ??????????????# """ # %########## | | ??????????????# """ = ## ##????????# | | ??????????????# ## #?????########+######+ | | ??????????????########### #?????# """"^ # = | | ????????????????????????# #?????# """" # | | ????????????????????????# #?????# """" + """ | | ????????????????????????# #?????# # """ | | ????????????????????????# #?????# # """ | | ????????????????????????# #?????# # | | ????????????????????????# #?????# ! ###### | | ????????????????????????# #?????# #????? | | ????????????????????????# +?????###########????? | | ????????????????????????# #????????????????????? | | ????????????????????????# #????????????????????? | | ????????????????????????# #????????????????????? | | ????????????????????????#@ #????????????????????? | | ????????????????????????# #????????????????????? | | ????????????????????????# #????????????????????? | | ????????????????????????+ #????????????????????? | | ????????????????????????# #????????????????????? | | ????????????????????????# < #????????????????????? | | ????????????????????????# #????????????????????? | | ????????????????????????#####????????????????????? | | ?????????????????????????????????????????????????? | | ?????????????????????????????????????????????????? | | ?????????????????????????????????????????????????? | | ?????????????????????????????????????????????????? | | ?????????????????????????????????????????????????? | | ?????????????????????????????????????????????????? | | ?????????????????????????????????????????????????? | | ?????????????????????????????????????????????????? | | ?????????????????????????????????????????????????? | | ?????????????????????????????????????????????????? | | ?????????????????????????????????????????????????? | | ?????????????????????????????????????????????????? | | | | | | | | | | | +----------------------------------------------------+ Best States ------------- Heat Dissipation 31 Energy Generation 14 Energy Capacity 280 Matter Stores 300 Matter Capacity 300 Sight Range 16 Robot Scan Range 15 Terrain Scan Density 10 Additional Mass Support 9 Armor Coverage 150 Resistance: KI 20 Resistance: TH 20 Resistance: EX 20 Resistance: EM 20 Resistance: I 20 Resistance: S 20 Resistance: P 20 Evasion (%) 64 Offensive Hacking 10 Defensive Hacking 10 Item Schematics ----------------- None Robot Schematics ------------------ None Fabricated ------------ Nothing Repaired ---------- Nothing Studied --------- None Alien Tech Used ----------------- None Achievements -------------- Ghost 'Em Overwhelming Power Corrupts Challenges ------------ None Game ------ Seed SpikedAngularPick Manual? 0 Play Time 00:50:59 Cumulative 5.0 hours Start 2025.11.22 @ 09:24:11 End 2025.11.22 @ 13:48:08 Sessions 1 Manual Loads 0 Difficulty Adventurer Special Mode None Game No. 6 Rogue 0 Adventurer 6 Explorer 0 Win Type - Total 0 Types 0/0/0/0/0/0/0/0/0/0 Lore% 0 Gallery% 7 Achievement% 8 Wizard Run 0 Options --------- Layout 2 ASCII 0 Keyboard 1 Movement Vi Keybinds 0 Fullscreen 2 Font 24/Terminus Map View 50x44 Zoom Use 0% Tactical HUD 1 Map Filters NONE Filters NONE Steam 1 RUN: d05aa453-7bb3-4395-87d7-8450726dc846